Cogmind - Beta 14 @@@ ROGUE MODE // 2024.08.17 @ 16:21:14 Player: Falseshadow Result: Destroyed by G-34 Mercenary with Small Laser Performance ------------- Evolutions (0) 0 Regions Visited (2) 400 Robots Destroyed (27) 135 Value Destroyed (725) 725 Prototype IDs (0) 0 Alien Tech Used (0) 0 Bonus (0) 0 TOTAL SCORE: 1260 Bonus ------- None Cogmind --------- Core Integrity 0/250 Matter 277/300 Energy 100/100 System Corruption 0% Temperature Hot (217) Movement Walking (260) Ox2 Location -10/Mines Parts ------- > --- POWER (1) -------- (None) > --- PROPULSION (2) --- Aluminum Leg > --- UTILITY (2) ------ Large Storage Unit > --- WEAPON (2) ------- Light Assault Rifle > --- INVENTORY (15) --- Light Nuclear Core Improved Heat Sink Faulty Advanced Beam Cannon Peak State ------------ > --- POWER ------------ Light Ion Engine > --- PROPULSION ------- Light Treads Light Treads > --- UTILITY ---------- Small Storage Unit Structural Scanner > --- WEAPON ----------- Assault Rifle Light Assault Rifle > --- INVENTORY -------- Ion Engine Advanced Beam Cannon Light Assault Rifle [Rating: 7] Favorites ----------- Power Light Ion Engine Engine Light Ion Engine Propulsion Light Treads Treads Light Treads Leg Aluminum Leg Utility Structural Scanner Device Structural Scanner Storage Small Storage Unit Weapon Light Assault Rifle Ballistic Gun Light Assault Rifle Special Weapon Mining Laser Build | -11 -10 -10 ------- Run | Yrd Mat Min Slots Evolved . | . . . Power . | . . . Propulsion . | . . . Utility . | . . . Weapon . | . . . Parts Attached 15 | 6 5 4 Power 3 | 1 1 1 Engine 3 | 1 1 1 Core . | . . . Reactor . | . . . Propulsion 3 | 2 . 1 Treads 2 | 2 . . Leg 1 | . . 1 Wheel . | . . . Hover . | . . . Flight . | . . . Utility 4 | 1 3 . Device 1 | . 1 . Storage 3 | 1 2 . Processor . | . . . Hackware . | . . . Protection . | . . . Artifact . | . . . Weapon 5 | 2 1 2 Energy Gun . | . . . Energy Cannon . | . . . Ballistic Gun 4 | 2 1 1 Ballistic Cannon . | . . . Launcher . | . . . Special Weapon 1 | . . 1 Impact Weapon . | . . . Slashing Weapon . | . . . Piercing Weapon . | . . . Special Melee Weapon . | . . . Unidentified Prototypes . | . . . Parts Lost 10 | . 2 8 Power 3 | . 1 2 Propulsion 2 | . . 2 Utility 1 | . . 1 Weapon 4 | . 1 3 Highest Loss Streak 5 | . 1 5 To Critical Strikes 1 | . 1 . Average Slot Usage (%) 87 | . 92 78 Engine 13 | . 13 14 Treads 24 | . 28 16 Device 9 | . 7 13 Storage 14 | . 14 14 Ballistic Gun 24 | . 28 17 Peak Build Rating 7 | 6 7 7 Average Rating 6 | 4 6 6 On Entrance 4 | . 6 7 Naked Turns . | . . . Heaviest Build 29 | 11 27 29 Greatest Support 40 | 40 40 40 Greatest Overweight (x) 1 | . . 1 Average Overweight (x) . | . . . Largest Inventory Capacity 15 | 8 15 15 Average Capacity 10 | 6 8 15 Most Carried 6 | 4 4 6 Average Carried 3 | 1 2 5 Final Capacity 15 | 8 15 15 Final Carried 4 | 1 4 3 Class Distribution -------------------- 100% | Mutant Dominant Class ---------------- Mutant | -10/Materials Mutant | -10/Mines Resources | -11 -10 -10 ----------- Run | Yrd Mat Min Matter Collected 614 | 260 280 74 Remotely . | . . . Salvage Created 899 | . 696 203 Parts 60 | . 54 6 Haulers Intercepted 1 | . 1 . Recyclers Shooed . | . . . Parts Field Recycled . | . . . Retrieved Matter . | . . . Parts Self-Destructed . | . . . Prevented . | . . . Kills | -11 -10 -10 ------- Run | Yrd Mat Min Combat Hostiles Destroyed 23 | . 18 5 Guns 23 | . 18 5 Classes Destroyed 6 | . 6 . Worker 1 | . 1 . Hauler 1 | . 1 . Operator 1 | . 1 . Watcher 1 | . 1 . Swarmer 6 | . 6 . Grunt 17 | . 12 5 Best Kill Streak 3 | . 3 2 Combat Bots Only 3 | . 3 2 Max Kills in Single Turn 1 | . 1 1 Gunslinging . | . . . Exploded . | . . . Melee . | . . . Uniques/NPCs Destroyed . | . . . Combat | -11 -10 -10 -------- Run | Yrd Mat Min Hostile Shots Fired 144 | . 83 61 Missed 44 | . 26 18 Damage Taken 1144 | . 544 600 Core 260 | . 116 144 Absorbed by Shields . | . . . Core Remaining (%) 100 | 100 . . Volleys Fired 104 | . 67 37 Largest 2 | . 2 2 Hottest 120 | . 40 120 Shots Fired 190 | . 134 56 Gun 185 | . 134 51 Cannon . | . . . Launcher . | . . . Special 5 | . . 5 Kinetic 185 | . 134 51 Thermal 5 | . . 5 Explosive . | . . . Electromagnetic . | . . . Robot Hit Streak 15 | . 15 15 Robot Miss Streak 4 | . 4 2 Penetration Max . | . . . Secondary Targets 3 | . 2 1 Max Gunslinging Chain 1 | . 1 1 Shots Hit Robots 124 | . 81 43 Core Hits 54 | . 38 16 Critical Kills 2 | . 2 . Critical Parts Destroyed 1 | . . 1 Critical Strikes 3 | . 2 1 Destroy 3 | . 2 1 Melee Attacks . | . . . Impact . | . . . Slashing . | . . . Piercing . | . . . Sneak Attacks . | . . . Combat Hostiles . | . . . Follow-up Attacks . | . . . Damage Inflicted 1311 | . 891 420 Guns 1255 | . 886 369 Cannons . | . . . Explosions . | . . . Melee . | . . . Ramming 8 | . 5 3 Kinetic 1255 | . 886 369 Thermal 48 | . . 48 Explosive . | . . . Electromagnetic . | . . . Impact . | . . . Slashing . | . . . Piercing . | . . . Highest Corruption . | . . . Average Corruption . | . . . Corruption Purged . | . . . Corruption Blocked . | . . . Overload Shots . | . . . Overflow Damage . | . . . Projectiles . | . . . Explosions . | . . . Melee . | . . . Knockbacks . | . . . Impact . | . . . Kinetic . | . . . Secondary . | . . . Self-Inflicted Damage . | . . . Shots . | . . . Rammed 5 | . 4 1 Targets Rammed 5 | . 4 1 Kicked . | . . . Crushed . | . . . Highest Temperature 240 | . 12 240 Average Temperature 53 | . 6 85 Received Heat Transfer 567 | . 186 381 Siege Activations . | . . . Robots Corrupted . | . . . Combat Hostiles . | . . . Parts Fried . | . . . Impact Corruptions . | . . . Robots Melted . | . . . Combat Hostiles . | . . . Parts Melted . | . . . Heat Transferred 100 | . . 100 Parts Sabotaged . | . . . Parts Stolen . | . . . Parts Stripped . | . . . Power Chain Reactions . | . . . Alert | -11 -10 -10 ------- Run | Yrd Mat Min Peak Influence 205 | . 205 101 Initial 31 | . . 31 Average 85 | . 107 52 Maximum Alert Level 1 | . 1 . Low Security (%) 90 | 100 85 100 Level 1 9 | . 14 . Level 2 . | . . . Level 3 . | . . . Level 4 . | . . . Level 5 . | . . . High Security . | . . . Max Security . | . . . Squads Dispatched 5 | . 5 . Investigation 2 | . 2 . Extermination . | . . . Reinforcement 3 | . 3 . Assault . | . . . Garrison . | . . . Intercept . | . . . Searches Triggered . | . . . Construction Impeded . | . . . Haulers Reinforced . | . . . Active Scanning Responses . | . . . Cargo Convoy Interrupts . | . . . Stealth | -11 -10 -10 --------- Run | Yrd Mat Min Distress Signals . | . . . Communications Jammed . | . . . Distress Signals . | . . . Times Spotted 35 | . 29 6 Peak Tracking Total 5 | . 5 2 Tactical Retreats 1 | . 1 . Traps | -11 -10 -10 ------- Run | Yrd Mat Min Traps Triggered 2 | . 2 . Indirectly . | . . . Trap Hack Attempts . | . . . Triggered . | . . . Disarmed . | . . . Reprogrammed . | . . . Reused . | . . . Traps Extracted . | . . . Installed . | . . . Triggered . | . . . Machines | -11 -10 -10 ---------- Run | Yrd Mat Min Machines Disabled . | . . . Max in Single Turn . | . . . Machines Repaired . | . . . Machines Dismantled . | . . . Machines Sabotaged . | . . . Overloaded Fab Kills . | . . . Hacking | -11 -10 -10 --------- Run | Yrd Mat Min Machines Accessed 6 | . 6 . Terminals 6 | . 6 . Fabricators . | . . . Repair Stations . | . . . Recycling Units . | . . . Scanalyzers . | . . . Garrison Access . | . . . Total Hacks 11 | . 11 . Successful 6 | . 6 . Failed 5 | . 5 . Catastrophic 1 | . 1 . Database Lockouts . | . . . Manual 11 | . 11 . Terminals 11 | . 11 . Fabricators . | . . . Repair Stations . | . . . Recycling Units . | . . . Scanalyzers . | . . . Garrison Access . | . . . Terminal Hacks 3 | . 3 . Robot Analysis 2 | . 2 . Branch Access Points 1 | . 1 . Fabricator Hacks . | . . . Repair Station Hacks . | . . . Recycling Unit Hacks . | . . . Scanalyzer . | . . . Garrison Access Hacks . | . . . Unauthorized Hacks 3 | . 3 . Terminals 3 | . 3 . Assimilate 1 | . 1 . Botnet 2 | . 2 . Fabricators . | . . . Repair Stations . | . . . Recycling Units . | . . . Scanalyzers . | . . . Garrison Access . | . . . Data Cores Recovered . | . . . Used . | . . . Hacking Detections 5 | . 5 . Full Trace Events . | . . . Feedback Events . | . . . Feedback Blocked . | . . . Robot Schematics Acquired . | . . . Robots Built . | . . . Authchips . | . . . Time . | . . . Total Robot Build Rating . | . . . Part Schematics Acquired . | . . . Parts Built . | . . . Authchips . | . . . Time . | . . . Total Part Build Rating . | . . . Parts Repaired . | . . . Time . | . . . Parts Recycled . | . . . Recycled Matter . | . . . Retrieved Matter . | . . . Retrieved Components . | . . . Parts Scanalyzed . | . . . Part Schematics Acquired . | . . . Parts Damaged . | . . . Bothacking | -11 -10 -10 ------------ Run | Yrd Mat Min Used RIF Installer . | . . . Robots Hacked . | . . . Non-combat . | . . . Combat . | . . . Robot Hacks Applied . | . . . Relay Couplers Released . | . . . Fabnet Peak Effective % . | . . . Robots Rewired . | . . . Allies Hacked . | . . . Hacks Repelled . | . . . Allies | -11 -10 -10 -------- Run | Yrd Mat Min Total Allies . | . . . Largest Group . | . . . Highest-Rated Group . | . . . Highest-Rated Ally . | . . . Total Orders . | . . . Ally Attacks . | . . . Total Damage . | . . . Kills . | . . . Allies Corrupted . | . . . Allies Melted . | . . . Intel | -11 -10 -10 ------- Run | Yrd Mat Min Robot Analysis Total 2 | . 2 . Derelict Logs Recovered . | . . . Drone Launches . | . . . Drone Recoveries . | . . . Exploration | -11 -10 -10 ------------- Run | Yrd Mat Min Turns Passed 1945 | 70 1252 623 Spaces Moved 923 | 45 641 237 Core 13 | 13 . . Treads 910 | 32 641 237 Legs . | . . . Wheels . | . . . Hover . | . . . Flight . | . . . Fastest Speed 50 | 50 160 160 Average Speed 173 | 128 160 217 Slowest Speed 240 | 160 160 240 Overloaded Moves . | . . . Propulsion Burnouts . | . . . Robots Hopped . | . . . Cave-ins Triggered . | . . . Exploration Rate (%) 42 | 5 82 40 Regions Visited 2 Branch Regions 1 Pre-discovered Areas . | . . . Known Exits Taken 1 | . 1 . Unknown Exits Taken 1 | 1 . . Scrap Searched . | . . . Spaces Dug . | . . . Terrain Destroyed 3 | . . 3 Melee . | . . . Projectile 3 | . . 3 AOE . | . . . Terrain Rammed . | . . . Walls Destroyed . | . . . Machines Disabled . | . . . Actions | -11 -10 -10 --------- Run | Yrd Mat Min Total 1089 | 57 745 287 Wait 24 | . 19 5 Move 921 | 44 640 237 Hop . | . . . Pick Up 18 | 7 8 3 Fast Attach . | . . . Attach 13 | 6 3 4 Detach . | . . . Swap 2 | . 2 . Drop 2 | . 2 . Fire 104 | . 67 37 Melee . | . . . Ram . | . . . Kick . | . . . Crush 5 | . 4 1 Escape Stasis . | . . . Rewire . | . . . Trap . | . . . Miscellaneous . | . . . Route ------- -11/Scrapyard -10/Materials (discovered 4 exits: [*Mat x3] / *Min) -10/Mines (discovered 1 exit: [*Mat]) History --------- Turn | Location | Event 4 | -11/Scrapyard | Discovered new exit (range 15) 71 | -11/Scrapyard | Entered Materials 274 | -10/Materials | Discovered new exit (range 3) 300 | -10/Materials | Build established: Mutant 467 | -10/Materials | Discovered new exit (range 15) 917 | -10/Materials | Discovered new exit (range 7) 996 | -10/Materials | Identified exit to Mines 1323 | -10/Materials | Entered Mines 1376 | -10/Mines | Discovered new exit (range 9) 1382 | -10/Mines | Core integrity fell below 50% 1517 | -10/Mines | Lost 3 parts (1p1n1w) 1904 | -10/Mines | Core integrity fell below 20% 1946 | -10/Mines | Destroyed by G-34 Mercenary with Small Laser Last Messages --------------- Acquired Imp. Heat Sink. K-01 Serf collects debris. Lgt. Ion Engine destroyed. Assault Rifle destroyed. G-47 Trooper destroyed. Lgt. Treads destroyed. G-34 Mercenary destroyed. Acquired 21 matter. Acquired Aluminum Leg. Acquired Lgt. Nuclear Core. Critical hit (Burn: +37). Lgt. Assault Rifle destroyed. Lgt. Treads destroyed. U-05 Engineer builds a Wall. U-05 Engineer suffers critical hit (Burn). U-05 Engineer destroyed. Mining Laser destroyed. Structural Scanner destroyed. G-47 Trooper destroyed. Ion Engine destroyed. Map ----- +----------------------------------------------------+ | ????????######???????????????????????????????????? | | ???????########??????????????????????????????????? | | ???????### ###??????????????????????????????????? | | ???????## ##??????????????????????????????????? | | ???????## ##??????????????????????????????????? | | ???????## ###??????????????????????????????????? | | ####??### ####??????????????????????????????????? | | ######### ###???????????????????????????????????? | | ###### ##????????????????????????????????????? | | ### ##????????????????????????????????????? | | ## ##????????????????????????????????????? | | ## ###???????????????????????????????????? | | ### ####??????????????????????????????????? | | #### ####????######???????????????????????? | | ###### ###????#######??????????????????????? | | ##### ##????## ####?????????????????????? | | #### ##????## ###?????????????????????? | | # #### ###????## ###????????????????????? | | ## #### ###????## ###????????????????????? | | ### ### ###????### ##????????????????????? | | ### ## ##??##### ##????????????????????? | | ?## ##?##### ##????????????????????? | | ?## ##?### ##????????????????????? | | ?### ##### ##????????????????????? | | ?#### ## ##### * ##????????????????????? | | ??### ### #### ##%@###????????????????????? | | ???## #### #### ###|;###????????????????????? | | ???## ##### #### ###g;##?????????????????????? | | ???## ##### ##### ## ?????????????????????? | | ???## ##?## ##### # ?????????????????????? | | ???## ##?## #####?????????????????????? | | ???## ##?## ####?????????????????????? | | ???## ########## ###??????????????????????? | | ???## ########## ####?????????????????????? | | #??## #### ####????????????????????? | | #??### ##### #### ####???????????????????? | | ? ## ##### ##### ####??????????????????? | | """ ## ### ####### ####?????????????????? | | """ ## ####### ###?????????????????? | | """ % ## ######## ##?????????????????? | | ## ### ######## ## ##?????????????????? | | ###### ### ###############?????????????????? | | ###### ### < #############?????????????????? | | ????## ### ##???????????????????????????? | | ###### ### ## ###???????????????????????????? | | ###### #### ########???????????????????????????? | | # ##############????????????????????????????? | | # ##############?????????????????????????????????? | | # #######????????????????????????????????????????? | | # ##?????????????????????????????????????????????? | +----------------------------------------------------+ Best States ------------- Heat Dissipation 25 Energy Generation 10 Energy Capacity 250 Matter Stores 300 Matter Capacity 300 Sight Range 16 Terrain Scan Density 10 Evasion (%) 50 Recoil Reduction 2 Item Schematics ----------------- None Robot Schematics ------------------ None Fabricated ------------ Nothing Alien Tech Used ----------------- None Achievements -------------- None Challenges ------------ None Game ------ Seed NetworkCompanionFlamer Manual? 0 Play Time 00:10:25 Cumulative 66.4 hours Start 2024.08.17 @ 16:11:57 End 2024.08.17 @ 16:21:14 Sessions 1 Manual Loads 0 Difficulty Rogue Special Mode None Game No. 88 Rogue 88 Adventurer 0 Explorer 0 Win Type - Total 2 Types 2/0/0/0/0/0/0/0/0 Lore% 35 Gallery% 51 Achievement% 38 Wizard Run 0 Options --------- Layout 0 ASCII 0 Keyboard 0 Movement Mouse Keybinds 0 Fullscreen 2 Font 18/SmallcapsGlow Map View 76x50 Zoom Use 0% Tactical HUD 0 Map Filters NONE Filters NONE Steam 1 RUN: 313ef7da-6149-42cd-8c6d-3f917e90c1bc